bitfinex/quotes_BTCUSD_20241002
["timestamp","ask_amount","ask_price","bid_price","bid_amount"]
[1727830052799,0.06093228,61149.0,61141.0,0.336988]
[1727830053076,0.43661826,61149.0,61143.0,0.13084]
[1727830053352,0.43661826,61149.0,61141.0,0.0002]
[1727830053353,0.130842,61142.0,61141.0,0.0002]
[1727830053586,0.38311885,61142.0,61141.0,0.0002]
[1727830053855,0.19230925,61142.0,61141.0,0.0002]
[1727830055068,0.19730925,61142.0,61141.0,0.0002]
[1727830055551,0.20230925,61142.0,61141.0,0.0002]
[1727830056045,0.50925163,61142.0,61141.0,0.0002]
[1727830058934,0.50925163,61142.0,61141.0,0.00102]
[1727830060545,0.60925163,61142.0,61141.0,0.00102]
[1727830061948,0.49311885,61142.0,61141.0,0.00102]
[1727830062181,0.30230925,61142.0,61141.0,0.00102]
[1727830062410,0.20230925,61142.0,61141.0,0.00102]
[1727830066209,0.01,61142.0,61141.0,0.00102]
[1727830066680,0.140842,61142.0,61141.0,0.00102]
[1727830067183,0.41138909,61142.0,61141.0,0.00102]
[1727830067935,0.51138909,61142.0,61141.0,0.00102]
[1727830068163,0.68498909,61142.0,61141.0,0.00102]
[1727830068433,0.67498909,61142.0,61141.0,0.00102]
[1727830068658,0.68298909,61142.0,61141.0,0.00102]
[1727830068902,0.67498909,61142.0,61141.0,0.00102]
[1727830069139,0.67698909,61142.0,61141.0,0.00102]
[1727830069369,0.68898909,61142.0,61141.0,0.00102]
[1727830069644,0.69698909,61142.0,61141.0,0.00102]
[1727830070120,0.68898909,61142.0,61141.0,0.00102]
[1727830070806,0.70298909,61142.0,61141.0,0.00102]
[1727830071731,0.60731885,61142.0,61141.0,0.00102]
[1727830071962,0.41650925,61142.0,61141.0,0.00102]
[1727830072221,0.60731885,61142.0,61141.0,0.00102]
[1727830077404,0.59331885,61142.0,61141.0,0.00102]
[1727830077635,0.59031885,61142.0,61141.0,0.00102]
[1727830077873,0.41150925,61142.0,61141.0,0.00102]
[1727830078106,0.21530925,61142.0,61141.0,0.00102]
[1727830078327,0.08446725,61142.0,61141.0,0.00102]
[1727830078546,0.21530925,61142.0,61141.0,0.00102]
[1727830078790,0.023,61142.0,61141.0,0.00102]
[1727830079252,0.023,61142.0,61141.0,0.131865]
[1727830080033,0.023,61142.0,61141.0,0.00102]
[1727830080218,0.37569298,61145.0,61141.0,0.00102]
[1727830080219,0.130839,61144.0,61141.0,0.00102]
[1727830080472,0.002,61142.0,61141.0,0.00102]
[1727830080966,0.132842,61142.0,61141.0,0.00102]
[1727830081223,0.001,61142.0,61141.0,0.00102]
[1727830081468,0.001,61142.0,61141.0,0.131865]
[1727830081916,0.001,61142.0,61141.0,0.00102]
[1727830082862,0.001,61142.0,61141.0,0.131865]
[1727830083303,0.001,61142.0,61141.0,0.00102]
[1727830083525,0.22374,61144.0,61141.0,0.00102]
[1727830083787,0.092902,61144.0,61141.0,0.00102]
[1727830084029,0.223742,61144.0,61141.0,0.00102]
[1727830084261,0.001,61142.0,61141.0,0.131864]
[1727830084489,0.130834,61146.0,61142.0,0.130842]
[1727830084736,0.003,61144.0,61143.0,0.13084]
[1727830085247,0.130842,61142.0,61141.0,0.00102]
[1727830085468,0.261675,61145.0,61141.0,0.00102]
[1727830085692,0.261669,61146.0,61141.0,0.00102]
[1727830085922,0.005,61146.0,61145.0,0.130836]
[1727830087050,0.005,61146.0,61141.0,0.00102]
[1727830087281,0.005,61146.0,61145.0,0.130836]
[1727830087793,0.001638,61149.0,61148.0,0.13083]
[1727830088031,0.001638,61149.0,61142.0,0.337882]
[1727830088255,0.130833,61147.0,61143.0,0.130839]
[1727830088478,0.263295,61149.0,61143.0,0.130839]
[1727830088479,0.394124,61149.0,61143.0,0.261681]
[1727830088695,0.394124,61149.0,61145.0,0.130836]
[1727830088949,0.07974095,61148.0,61142.0,0.0762]
[1727830089214,0.130842,61142.0,61141.0,0.00102]
[1727830089439,0.19230925,61142.0,61141.0,0.00102]
[1727830090140,0.28345654,61142.0,61141.0,0.00102]
[1727830090915,0.28445654,61142.0,61141.0,0.00102]
[1727830091138,0.28545654,61142.0,61141.0,0.00102]
[1727830091385,0.06346725,61142.0,61141.0,0.00102]
[1727830091670,0.002,61142.0,61141.0,0.00102]
[1727830092127,0.002,61142.0,61141.0,0.208065]
[1727830092361,0.002,61142.0,61141.0,0.00102]
[1727830092593,0.132842,61142.0,61141.0,0.00102]
[1727830092819,0.002,61142.0,61141.0,0.00102]
[1727830093069,0.002,61142.0,61141.0,0.131865]
[1727830093801,0.002,61142.0,61141.0,0.212765]
[1727830096207,0.001,61142.0,61141.0,0.212765]
[1727830096882,0.001,61142.0,61141.0,0.215765]
[1727830097377,0.002,61142.0,61141.0,0.217765]
[1727830097624,0.002,61142.0,61141.0,0.48035945]
[1727830098359,0.002,61142.0,61141.0,0.58035945]
[1727830098613,0.001638,61149.0,61148.0,0.4255396]
[1727830098853,0.001638,61149.0,61148.0,0.37642445]
[1727830099088,0.001638,61149.0,61148.0,0.21173]
[1727830099330,0.001638,61149.0,61148.0,0.56723405]
[1727830100040,0.001638,61149.0,61148.0,0.59023405]
[1727830100265,0.003638,61149.0,61148.0,0.60223405]
[1727830100808,0.003638,61149.0,61148.0,0.38842445]
[1727830101531,0.003638,61149.0,61148.0,0.22373]
[1727830106580,0.003638,61149.0,61148.0,0.60223405]
[1727830107585,0.003638,61149.0,61148.0,0.70223405]
[1727830108305,0.003638,61149.0,61148.0,0.70423405]
[1727830109037,0.003638,61149.0,61148.0,0.75795447]
[1727830109266,0.003638,61149.0,61148.0,0.70923405]
[1727830111201,0.24485598,61159.0,61158.0,0.028]
[1727830111426,0.24485598,61159.0,61158.0,0.72611126]
[1727830111652,0.24485598,61159.0,61158.0,0.72284205]
[1727830112122,0.24485598,61166.0,61158.0,0.72284205]
[1727830112123,0.24485598,61166.0,61165.0,0.331593]
[1727830112357,0.24485598,61166.0,61165.0,0.68709705]
[1727830112576,0.00164,61185.0,61172.0,0.130778]
[1727830112817,0.00164,61185.0,61172.0,0.50928205]
[1727830113266,0.00164,61185.0,61182.0,0.130757]
[1727830114267,0.00164,61185.0,61184.0,0.130753]
[1727830115836,0.00164,61185.0,61184.0,0.136753]
[1727830117460,0.00164,61185.0,61184.0,0.142753]
[1727830118172,0.00164,61185.0,61184.0,0.14602137]
[1727830120753,0.00164,61185.0,61184.0,0.142753]
[1727830125228,0.00164,61185.0,61184.0,0.136753]
[1727830125936,0.00264,61185.0,61184.0,0.143753]
[1727830127359,0.00264,61185.0,61184.0,0.14702135]
[1727830128314,0.00264,61185.0,61184.0,0.3347158]
[1727830128542,0.00264,61185.0,61184.0,0.33144745]
[1727830130273,0.00164,61185.0,61184.0,0.32444745]
[1727830130517,0.00164,61185.0,61184.0,0.33244745]
[1727830130756,0.00164,61185.0,61184.0,0.34644745]
[1727830131012,0.00164,61185.0,61184.0,0.158753]
[1727830135211,0.09374,61185.0,61184.0,0.158753]
[1727830135483,0.00164,61185.0,61184.0,0.51425705]
[1727830135727,0.00164,61185.0,61184.0,0.59075705]
[1727830136207,0.00164,61185.0,61184.0,0.59975705]
[1727830136450,0.00164,61185.0,61184.0,0.60175705]
[1727830136723,0.00164,61185.0,61184.0,0.59975705]
[1727830136972,0.00164,61185.0,61184.0,0.58575705]
[1727830137231,0.00164,61185.0,61184.0,0.69675705]
[1727830137487,0.00164,61185.0,61184.0,0.69875705]
[1727830137979,0.00164,61185.0,61184.0,0.70105847]
[1727830138236,0.00164,61185.0,61184.0,0.71205847]
[1727830138987,0.00164,61185.0,61184.0,0.78495847]
[1727830139256,0.001638,61198.0,61184.0,0.57770547]
[1727830139500,0.001638,61198.0,61197.0,0.3997346]
[1727830139746,0.001638,61198.0,61197.0,0.4227346]
[1727830140225,0.001638,61198.0,61197.0,0.5227346]
[1727830140726,0.001638,61198.0,61197.0,0.5337346]
[1727830141226,0.001638,61198.0,61197.0,0.5447346]
[1727830142441,0.001638,61198.0,61197.0,0.70942905]
[1727830142989,0.097138,61198.0,61197.0,0.152725]
[1727830143960,0.097138,61198.0,61197.0,0.022]
[1727830144213,0.097138,61198.0,61197.0,0.152725]
[1727830144450,0.097138,61198.0,61197.0,0.022]
[1727830144697,0.097138,61198.0,61197.0,0.141725]
[1727830145174,0.227861,61198.0,61197.0,0.011]
[1727830145458,0.179938,61198.0,61197.0,0.011]
[1727830145941,0.179938,61198.0,61194.0,0.392193]
[1727830146198,0.179938,61198.0,61196.0,0.130726]
[1727830146446,0.179938,61198.0,61195.0,0.130729]
[1727830146943,0.179938,61198.0,61193.0,0.261467]
[1727830146944,0.179938,61198.0,61194.0,0.130731]
[1727830147181,0.0955,61197.0,61192.0,0.130735]
[1727830147670,0.130728,61196.0,61192.0,0.130735]
[1727830148156,0.0955,61197.0,61195.0,0.130728]
[1727830149879,0.0955,61197.0,61195.0,0.130729]
[1727830150128,0.0955,61197.0,61196.0,0.130727]
[1727830150662,0.084438,61198.0,61197.0,0.130725]
[1727830150663,0.001638,61198.0,61197.0,0.130725]
[1727830152844,0.001638,61198.0,61184.0,0.04829921]
[1727830152845,0.0828,61197.0,61184.0,0.04829921]
[1727830153068,0.0828,61197.0,61183.0,0.0782]
[1727830153069,0.0828,61197.0,61196.0,0.130727]
[1727830154691,0.0828,61197.0,61196.0,0.134727]
[1727830155602,0.0828,61197.0,61196.0,0.138727]
[1727830158534,0.0828,61197.0,61196.0,0.008]
[1727830158767,0.0828,61197.0,61196.0,0.138727]
[1727830159480,0.10841439,61197.0,61196.0,0.138727]
[1727830159683,0.10841439,61197.0,61196.0,0.008]
[1727830159933,0.23913939,61197.0,61196.0,0.008]
[1727830160188,0.33713939,61197.0,61196.0,0.008]
[1727830160410,0.311525,61197.0,61196.0,0.008]
[1727830161337,0.311525,61197.0,61196.0,0.004]
[1727830162259,0.098,61196.0,61179.0,0.0778]
[1727830162485,0.098,61191.0,61188.0,0.130744]
[1727830162702,0.098,61191.0,61188.0,0.130743]
[1727830162927,0.098,61191.0,61180.0,0.42621545]
[1727830162928,0.098,61191.0,61190.0,0.13074]
[1727830163406,0.12361676,61191.0,61190.0,0.13074]
[1727830164556,0.098,61191.0,61190.0,0.13074]
[1727830165292,0.001638,61198.0,61197.0,0.130725]
[1727830165293,0.099638,61198.0,61197.0,0.130725]
[1727830166664,0.099638,61198.0,61195.0,0.261458]
[1727830166884,0.130732,61194.0,61191.0,0.130737]
[1727830167410,0.130729,61195.0,61190.0,0.26148]
[1727830167624,0.130729,61195.0,61188.0,0.261485]
[1727830167625,0.1733,61194.0,61191.0,0.130737]
[1727830167844,0.19891574,61194.0,61191.0,0.130737]
[1727830168082,0.19891574,61194.0,61192.0,0.130735]
[1727830168336,0.19891574,61194.0,61193.0,0.130733]
[1727830168337,0.12361574,61194.0,61193.0,0.130733]
[1727830168826,0.12361574,61194.0,61192.0,0.130735]
[1727830168827,0.098,61194.0,61192.0,0.130735]
[1727830169965,0.098,61194.0,61191.0,0.130737]
[1727830171384,0.098,61194.0,61190.0,0.261477]
[1727830171601,0.098,61194.0,61192.0,0.130734]
[1727830171856,0.12361608,61194.0,61193.0,0.130733]
[1727830172078,0.02561608,61194.0,61193.0,0.130733]
[1727830172351,0.02561608,61194.0,61192.0,0.130735]
[1727830172587,0.12221608,61194.0,61193.0,0.130733]
[1727830173029,0.0966,61194.0,61193.0,0.130733]
[1727830173711,0.304133,61194.0,61191.0,0.130738]
[1727830173932,0.1734,61194.0,61191.0,0.130738]
[1727830174153,0.1734,61194.0,61189.0,0.130742]
[1727830174154,0.130735,61193.0,61189.0,0.130742]
[1727830174367,0.304132,61194.0,61190.0,0.130738]
[1727830174589,0.1734,61194.0,61191.0,0.130737]
[1727830175095,0.304132,61194.0,61190.0,0.130739]
[1727830175763,0.304132,61194.0,61189.0,0.001]
[1727830175764,0.130738,61191.0,61189.0,0.001]
[1727830176012,0.261468,61193.0,61189.0,0.001]
[1727830176013,0.130734,61193.0,61189.0,0.130741]
[1727830176690,0.130736,61192.0,61189.0,0.130741]
[1727830176906,0.304132,61194.0,61190.0,0.130739]
[1727830177125,0.434866,61194.0,61188.0,0.130743]
[1727830177393,0.565599,61194.0,61189.0,0.13074]
[1727830177604,0.130734,61193.0,61189.0,0.13074]
[1727830177840,0.130734,61193.0,61187.0,0.261492]
[1727830177841,0.0966,61192.0,61187.0,0.130746]
[1727830178050,0.130738,61191.0,61189.0,0.001]
[1727830178264,0.130738,61191.0,61189.0,0.004]
[1727830178707,0.130738,61191.0,61188.0,0.130744]
[1727830179129,0.227336,61192.0,61188.0,0.130744]
[1727830179573,0.0966,61192.0,61188.0,0.261487]
[1727830179797,0.0966,61192.0,61191.0,0.130738]
[1727830180244,0.12221625,61192.0,61191.0,0.130738]
[1727830181592,0.12221625,61192.0,61191.0,0.133738]
[1727830182269,0.12221625,61192.0,61191.0,0.136738]
[1727830182551,0.12221625,61192.0,61191.0,0.006]
[1727830182785,0.25295225,61192.0,61191.0,0.006]
[1727830183653,0.12221625,61192.0,61191.0,0.006]
[1727830183852,0.25295225,61192.0,61191.0,0.006]
[1727830184383,0.12221625,61192.0,61191.0,0.006]
[1727830186764,0.25295225,61192.0,61191.0,0.006]
[1727830187727,0.12221625,61192.0,61191.0,0.006]
[1727830189069,0.02561625,61192.0,61191.0,0.136738]
[1727830190236,0.001636,61194.0,61191.0,0.006]
[1727830190537,0.001636,61194.0,61193.0,0.130733]
[1727830192087,0.001636,61194.0,61193.0,0.131733]
[1727830193259,0.02725084,61194.0,61193.0,0.131733]
[1727830193693,0.02725084,61194.0,61193.0,0.002]
[1727830193930,0.15798184,61194.0,61193.0,0.002]
[1727830194152,0.23798184,61194.0,61193.0,0.002]
[1727830194592,0.212367,61194.0,61193.0,0.002]
[1727830194835,0.305467,61194.0,61193.0,0.002]
[1727830197742,0.33108327,61194.0,61193.0,0.002]
[1727830197977,0.305467,61194.0,61193.0,0.002]
[1727830202569,0.81567651,61194.0,61193.0,0.002]
[1727830203068,0.68494551,61194.0,61166.0,0.0486907]
[1727830203321,0.49515426,61186.0,61168.0,0.37564198]
[1727830203591,0.72584069,61186.0,61168.0,0.24485598]
[1727830203835,0.72584069,61186.0,61161.0,0.07303606]
[1727830203836,0.223887,61168.0,61167.0,0.24485598]
[1727830204085,0.4726878,61168.0,61167.0,0.24485598]
[1727830204313,0.4726878,61168.0,61160.0,0.130803]
[1727830204314,0.130794,61165.0,61160.0,0.130803]
[1727830204554,0.3419008,61168.0,61158.0,0.261613]
[1727830204555,0.130796,61164.0,61159.0,0.130806]
[1727830204791,0.1510912,61168.0,61159.0,0.130806]
[1727830205055,0.130798,61163.0,61159.0,0.130806]
[1727830205298,0.261588,61165.0,61156.0,0.261625]
[1727830205299,0.130795,61165.0,61160.0,0.130804]
[1727830205548,0.130795,61165.0,61156.0,0.261625]
[1727830205785,0.130799,61163.0,61159.0,0.130805]
[1727830207005,0.130799,61163.0,61159.0,0.001]
[1727830207006,0.130804,61160.0,61159.0,0.001]
[1727830207241,0.18986444,61160.0,61159.0,0.001]
[1727830207478,0.26986444,61160.0,61159.0,0.001]
[1727830208634,0.26986444,61160.0,61159.0,0.002]
[1727830209091,0.26986444,61160.0,61159.0,0.001]
[1727830209535,0.26986444,61160.0,61159.0,0.005]
[1727830209994,0.26986444,61160.0,61159.0,0.001]
[1727830210228,0.29549594,61160.0,61159.0,0.002]
[1727830210512,0.43191539,61160.0,61159.0,0.002]
[1727830211204,0.21549594,61160.0,61159.0,0.002]
[1727830211908,0.18986444,61160.0,61159.0,0.002]
[1727830213286,0.18986444,61160.0,61159.0,0.002818]
[1727830214831,0.02563118,61160.0,61159.0,0.002818]
[1727830215599,0.02563118,61160.0,61159.0,0.133624]
[1727830215808,0.02563118,61160.0,61159.0,0.132624]
[1727830216047,0.02563118,61160.0,61159.0,0.133624]
[1727830216512,0.02563118,61160.0,61159.0,0.132624]
[1727830216740,0.02563118,61160.0,61159.0,0.131624]
[1727830216966,0.02763118,61160.0,61159.0,0.131624]
[1727830219708,0.002,61160.0,61159.0,0.131624]
[1727830220598,0.002,61160.0,61159.0,0.132624]
[1727830221046,0.002,61160.0,61159.0,0.133624]
[1727830221272,0.130794,61165.0,61159.0,0.001818]
[1727830221520,0.228091,61167.0,61162.0,0.130799]
[1727830221744,0.28648313,61167.0,61162.0,0.130799]
[1727830221967,0.15569213,61167.0,61159.0,0.266428]
[1727830222208,0.130793,61166.0,61161.0,0.1308]
[1727830222426,0.02562895,61166.0,61160.0,0.261607]
[1727830222646,0.02562895,61166.0,61162.0,0.130798]
[1727830223079,0.02562895,61166.0,61160.0,0.261607]
[1727830223369,0.02562895,61166.0,61159.0,0.000818]
[1727830223811,0.392382,61165.0,61160.0,0.130804]
[1727830224249,0.15642195,61166.0,61159.0,0.26243]
[1727830224493,0.130794,61165.0,61161.0,0.130801]
[1727830225179,0.131794,61165.0,61161.0,0.130801]
[1727830226078,0.001,61165.0,61159.0,0.26243]
[1727830226308,0.001,61165.0,61162.0,0.130799]
[1727830226533,0.07018459,61164.0,61161.0,0.130802]
[1727830227233,0.07018459,61164.0,61159.0,0.131623]
[1727830227451,0.1308,61162.0,61161.0,0.000818]
[1727830227685,0.2650931,61162.0,61161.0,0.000818]
[1727830228867,0.4579027,61162.0,61161.0,0.000818]
[1727830229775,0.9129786,61162.0,61161.0,0.000818]
[1727830230022,0.66612262,61162.0,61161.0,0.000818]
[1727830230471,0.67012262,61162.0,61161.0,0.000818]
[1727830230936,0.5527027,61162.0,61161.0,0.000818]
[1727830231649,0.56708106,61162.0,61161.0,0.000818]
[1727830231886,0.91193704,61162.0,61161.0,0.000818]
[1727830232119,0.84427206,61162.0,61161.0,0.000818]
[1727830232393,0.66708106,61162.0,61161.0,0.000818]
[1727830232606,0.79332593,61162.0,61161.0,0.000818]
[1727830232817,0.79332593,61162.0,61161.0,0.001818]
[1727830233065,0.78932593,61162.0,61161.0,0.001818]
[1727830233294,0.79732593,61162.0,61161.0,0.002818]
[1727830233733,0.78932593,61162.0,61161.0,0.001818]
[1727830233960,0.79832593,61162.0,61161.0,0.002818]
[1727830234182,0.79832593,61162.0,61161.0,0.001818]
[1727830234421,0.80132593,61162.0,61161.0,0.002818]
[1727830234642,0.130804,61160.0,61159.0,0.000818]
[1727830234893,1.71156276,61160.0,61159.0,0.000818]
[1727830235122,0.57514217,61160.0,61159.0,0.000818]
[1727830235351,0.49964851,61160.0,61159.0,0.000818]
[1727830236042,0.50664851,61160.0,61159.0,0.001818]
[1727830236272,0.48101317,61160.0,61159.0,0.001818]
[1727830236718,0.40221317,61160.0,61159.0,0.001818]
[1727830237216,0.41321317,61160.0,61159.0,0.002818]
[1727830238351,0.45088954,61160.0,61159.0,0.002818]
[1727830239455,0.47652279,61160.0,61159.0,0.002818]
[1727830239671,0.72137877,61160.0,61159.0,0.002818]
[1727830239890,0.47652279,61160.0,61159.0,0.002818]
[1727830243498,0.45088954,61160.0,61159.0,0.002818]
[1727830243965,0.69574552,61160.0,61159.0,0.002818]
[1727830244450,0.52818954,61160.0,61159.0,0.002818]
[1727830245132,0.53474554,61160.0,61159.0,0.002818]
[1727830246800,0.56038051,61160.0,61159.0,0.002818]
[1727830248212,0.52270414,61160.0,61159.0,0.002818]
[1727830248466,0.43884814,61160.0,61159.0,0.002818]
[1727830250531,0.11524414,61160.0,61159.0,0.002818]
[1727830251016,0.24604814,61160.0,61159.0,0.002818]
[1727830251267,0.10824414,61160.0,61159.0,0.001818]
[1727830251511,0.10824414,61160.0,61159.0,0.000818]
[1727830251512,0.22804814,61160.0,61159.0,0.000818]
[1727830251756,0.3325585,61160.0,61159.0,0.000818]
[1727830252701,0.3355585,61160.0,61159.0,0.001818]
[1727830253164,0.3435585,61160.0,61159.0,0.002818]
[1727830253624,0.31792353,61160.0,61159.0,0.002818]
[1727830254744,0.46213697,61160.0,61159.0,0.002818]
[1727830255678,0.41312353,61160.0,61159.0,0.002818]
[1727830255970,0.46213697,61160.0,61159.0,0.002818]
[1727830256170,0.41312353,61160.0,61159.0,0.002818]
[1727830256387,0.30861317,61160.0,61159.0,0.002818]
[1727830256595,0.21341317,61160.0,61159.0,0.002818]
[1727830256817,0.23904638,61160.0,61159.0,0.002818]
[1727830257284,0.10824238,61160.0,61159.0,0.002818]
[1727830257732,0.23904638,61160.0,61159.0,0.002818]
[1727830261943,0.21341317,61160.0,61159.0,0.002818]
[1727830265152,0.2390454,61160.0,61159.0,0.002818]
[1727830266252,0.21341317,61160.0,61159.0,0.002818]
[1727830266912,0.2435688,61160.0,61159.0,0.002818]
[1727830267126,0.21341317,61160.0,61159.0,0.002818]
[1727830268304,0.02368241,61160.0,61159.0,0.079318]
[1727830268554,0.02368241,61160.0,61159.0,0.210124]
[1727830269023,0.011,61160.0,61159.0,0.210124]
[1727830269259,0.03362959,61160.0,61159.0,0.209124]
[1727830269503,0.02862959,61160.0,61159.0,0.2123939]
[1727830269737,0.02862959,61160.0,61159.0,0.2183939]
[1727830269956,0.02862959,61160.0,61159.0,0.2173939]
[1727830269957,0.02562959,61160.0,61159.0,0.2173939]
[1727830270419,0.02562959,61160.0,61159.0,0.58858835]
[1727830270680,0.02562959,61160.0,61159.0,0.58531845]
[1727830270906,0.001638,61161.0,61160.0,0.330304]
[1727830271142,0.001638,61161.0,61160.0,0.49499845]
[1727830271895,0.001638,61161.0,61160.0,0.207304]
[1727830272327,0.01457533,61161.0,61160.0,0.207304]
[1727830272540,0.001638,61161.0,61160.0,0.207304]
[1727830272753,0.001638,61161.0,61160.0,0.218304]
[1727830273214,0.001638,61161.0,61160.0,0.207304]
[1727830273426,0.002638,61161.0,61160.0,0.207304]
[1727830273642,0.002638,61161.0,61160.0,0.211304]
[1727830274352,0.02826574,61161.0,61160.0,0.211304]
[1727830275044,0.02826574,61161.0,61160.0,0.207304]
[1727830275297,0.02726574,61161.0,61160.0,0.207304]
[1727830275517,0.02726574,61161.0,61160.0,0.210304]
[1727830275957,0.02726574,61161.0,61160.0,0.213304]
[1727830278743,0.0402007,61161.0,61160.0,0.213304]
[1727830279226,0.1710027,61161.0,61160.0,0.006]
[1727830280110,0.1710027,61161.0,61160.0,0.003]
[1727830280348,0.1710027,61161.0,61159.0,0.000818]
[1727830280349,0.130804,61160.0,61159.0,0.000818]
[1727830280820,0.28527524,61160.0,61159.0,0.000818]
[1727830281928,0.20277524,61160.0,61159.0,0.000818]
[1727830282145,0.20477524,61160.0,61159.0,0.000818]
[1727830282615,0.07397124,61160.0,61159.0,0.000818]
[1727830282837,0.0149108,61160.0,61159.0,0.207624]
[1727830283317,0.002,61160.0,61159.0,0.207624]
[1727830283532,0.01471744,61160.0,61159.0,0.207624]
[1727830283985,0.002,61160.0,61159.0,0.207624]
[1727830284705,0.001638,61161.0,61159.0,0.076818]
[1727830284932,0.001638,61161.0,61160.0,0.130804]
[1727830285390,0.02726681,61161.0,61160.0,0.130804]
[1727830286266,0.02926681,61161.0,61160.0,0.130804]
[1727830286483,0.02726681,61161.0,61160.0,0.130804]
[1727830286732,0.02726681,61161.0,61160.0,0.133804]
[1727830286955,0.02726681,61161.0,61160.0,0.134623]
[1727830287623,0.03998425,61161.0,61160.0,0.134623]
[1727830287844,0.02726681,61161.0,61160.0,0.138623]
[1727830288493,0.02726681,61161.0,61160.0,0.131623]
[1727830288703,0.02726681,61161.0,61160.0,0.136623]
[1727830288936,0.02726681,61161.0,61160.0,0.141623]
[1727830289585,0.04007163,61161.0,61160.0,0.141623]
[1727830291860,0.01444282,61161.0,61160.0,0.010819]
[1727830293247,0.20417158,61161.0,61160.0,0.010819]
[1727830293751,0.20417158,61161.0,61160.0,0.005819]
[1727830294227,0.20417158,61161.0,61160.0,0.000819]
[1727830295167,0.22980179,61161.0,61160.0,0.000819]
[1727830296073,0.34087957,61161.0,61160.0,0.000819]
[1727830296348,0.51907957,61161.0,61160.0,0.000819]
[1727830297239,0.51907957,61161.0,61160.0,0.001819]
[1727830297477,0.52107957,61161.0,61160.0,0.002819]
[1727830297691,0.41000179,61161.0,61160.0,0.001819]
[1727830298158,0.41000179,61161.0,61160.0,0.002819]
[1727830298620,0.32800179,61161.0,61160.0,0.002819]
[1727830299997,0.32800179,61161.0,61160.0,0.001819]
[1727830300213,0.13627303,61161.0,61160.0,0.000819]
[1727830300457,0.13627303,61161.0,61160.0,0.209123]
[1727830300458,0.04007303,61161.0,61160.0,0.209123]
[1727830300669,0.04107303,61161.0,61160.0,0.209123]
[1727830300881,0.02826821,61161.0,61160.0,0.209123]
[1727830301109,0.02826821,61161.0,61160.0,0.210123]
[1727830301371,0.02726821,61161.0,61160.0,0.210123]
[1727830301609,0.02739401,61161.0,61160.0,0.56562705]
[1727830301832,0.001636,61185.0,61184.0,0.208253]
[1727830302508,0.001636,61185.0,61181.0,0.261516]
[1727830302954,0.001636,61185.0,61175.0,0.0775]
[1727830303229,0.001636,61185.0,61165.0,0.07316029]
[1727830303230,0.130753,61184.0,61177.0,0.130767]
[1727830303457,0.001636,61185.0,61170.0,0.261565]
[1727830303458,0.132387,61185.0,61170.0,0.261565]
[1727830303681,0.132387,61185.0,61177.0,0.261532]
[1727830303682,0.001636,61185.0,61177.0,0.261532]
[1727830303961,0.001636,61185.0,61184.0,0.4072626]
[1727830304173,0.002636,61185.0,61184.0,0.58495705]
[1727830304646,0.001636,61185.0,61184.0,0.58495705]
[1727830305312,0.001636,61185.0,61184.0,0.68495705]
[1727830305854,0.001636,61185.0,61184.0,0.68695705]
[1727830306074,0.001636,61185.0,61184.0,0.72475705]
[1727830306335,0.001636,61185.0,61184.0,0.77789581]
[1727830306561,0.001636,61185.0,61184.0,0.80389581]
[1727830307017,0.001636,61185.0,61184.0,0.78989581]
[1727830307240,0.001636,61185.0,61184.0,0.75075705]
[1727830307457,0.001636,61185.0,61184.0,0.78989581]
[1727830307669,0.001636,61185.0,61184.0,0.89971527]
[1727830308334,0.001636,61185.0,61184.0,0.8509017]
[1727830309721,0.001636,61185.0,61184.0,0.90404046]
[1727830310668,0.001636,61185.0,61184.0,0.87124046]
[1727830310894,0.001636,61185.0,61184.0,0.8201017]
[1727830311353,0.001636,61185.0,61184.0,0.8529017]
[1727830311810,0.001636,61185.0,61184.0,0.8201017]
[1727830312673,0.001636,61185.0,61184.0,0.8061017]
[1727830313130,0.001636,61185.0,61184.0,0.8201017]
[1727830313359,0.001636,61185.0,61184.0,0.8061017]
[1727830314734,0.001636,61185.0,61184.0,0.8201017]
[1727830317457,0.001636,61185.0,61184.0,0.8061017]
[1727830317679,0.001636,61185.0,61184.0,0.7921017]
[1727830317914,0.001636,61185.0,61184.0,0.8061017]
[1727830318126,0.001636,61185.0,61184.0,0.7921017]
[1727830318357,0.001636,61185.0,61184.0,0.8061017]
[1727830319710,0.001636,61185.0,61184.0,0.8201017]
[1727830319924,0.001636,61192.0,61191.0,0.54036706]
[1727830320187,0.001636,61192.0,61191.0,0.70506151]
[1727830320695,0.001636,61192.0,61191.0,0.70706151]
[1727830320930,0.001636,61192.0,61191.0,0.70506151]
[1727830321638,0.001636,61192.0,61191.0,0.71906151]
[1727830321879,0.001638,61211.0,61206.0,0.130706]
[1727830322137,0.001638,61211.0,61206.0,0.70829662]
[1727830322420,0.001638,61211.0,61206.0,0.70502951]
[1727830322421,0.01494973,61207.0,61206.0,0.70502951]
[1727830322656,0.001638,61207.0,61206.0,0.78072951]
[1727830323311,0.001638,61207.0,61206.0,0.83386827]
[1727830323783,0.001638,61207.0,61206.0,0.84786827]
[1727830323963,0.001638,61207.0,61206.0,0.79472951]
[1727830324205,0.001638,61207.0,61206.0,0.80272951]
[1727830324462,0.001638,61207.0,61206.0,0.79472951]
[1727830324900,0.001638,61207.0,61206.0,0.86186827]
[1727830325118,0.001638,61207.0,61206.0,0.80872951]
[1727830326742,0.001638,61207.0,61206.0,0.73302951]
[1727830327444,0.001638,61207.0,61206.0,0.73502951]
[1727830327667,0.001638,61207.0,61206.0,0.63940058]
[1727830327889,0.001638,61207.0,61206.0,0.64367622]
[1727830328134,0.001638,61207.0,61206.0,0.64167622]
[1727830329753,0.001638,61211.0,61206.0,0.51097022]
[1727830330013,0.001638,61211.0,61210.0,0.32169713]
[1727830330257,0.001638,61211.0,61210.0,0.61139158]
[1727830330474,0.001638,61211.0,61210.0,0.65892966]
[1727830330839,0.001638,61211.0,61210.0,0.61139158]